lending/lending_fUSD_20260124
["ID","MTS","AMOUNT","RATE_DAILY","PERIOD"]
[403269093,1769283215913,-9400.01,0.0001014,2]
[403269095,1769283216094,-10000.01,0.0001014,2]
[403269096,1769283216293,-10000.01,0.0001014,2]
[403269098,1769283216429,-10000.01,0.0001014,2]
[403269099,1769283216638,-10000.01,0.0001014,2]
[403269100,1769283216720,-10000.01,0.0001014,2]
[403269101,1769283216884,-10000.01,0.0001014,2]
[403269102,1769283217134,-10000.01,0.0001014,2]
[403269103,1769283217205,-10000.01,0.0001014,2]
[403269104,1769283218361,-10000.01,0.0001014,2]
[403269105,1769283218372,-10000.01,0.0001014,2]
[403269106,1769283218383,-10000.01,0.0001014,2]
[403269107,1769283218469,-10000.01,0.0001014,2]
[403269108,1769283227526,-10000.01,0.0001014,2]
[403269109,1769283227616,-10000.01,0.0001014,2]
[403269110,1769283227705,-10000.01,0.0001014,2]
[403269111,1769283227876,-10000.01,0.0001014,2]
[403269112,1769283227975,-10000.01,0.0001014,2]
[403269113,1769283228029,350.917443,0.00010089,2]
[403269114,1769283228124,-10000.01,0.0001014,2]
[403269115,1769283235911,-10000.01,0.0001014,2]
[403269116,1769283239358,-10000.01,0.0001014,2]
[403269117,1769283240197,-10000.01,0.0001014,2]
[403269118,1769283240326,-10000.01,0.0001014,2]
[403269119,1769283240444,-10000.01,0.0001014,2]
[403269120,1769283240591,-10000.01,0.0001014,2]
[403269124,1769283270600,-300.0,0.00010139,2]
[403269125,1769283270630,-575.87326995,0.0001014,2]
[403269126,1769283272446,-422.0456,0.0001014,2]
[403269127,1769283283715,422.0456,0.0001004,2]
[403269128,1769283286020,-454.1716,0.0001014,2]
[403269130,1769283289986,-162.96462613,0.0001014,2]
[403269131,1769283291769,-325.69714419,0.0001014,2]
[403269132,1769283293152,-255.19206791,0.0001014,2]
[403269137,1769283296068,-517.90929034,0.0001014,2]
[403269138,1769283299265,-166.66,0.0001014,2]
[403269139,1769283300878,-367.40314113,0.0001014,2]
[403269140,1769283303562,-300.0,0.00010139,2]
[403269141,1769283306193,-258.69331905,0.00010139,2]
[403269142,1769283308175,-155.03186656,0.00010139,2]
[403269143,1769283310063,-203.76731991,0.00010139,2]
[403269145,1769283312115,-218.34596674,0.00010139,2]
[403269146,1769283314091,-64.16152774,0.00010139,2]
[403269147,1769283314119,-105.49629608,0.0001014,2]
[403269148,1769283318102,-161.37818768,0.0001014,2]
[403269149,1769283320120,-321.55787541,0.0001014,2]
[403269150,1769283322192,-200.0,0.0001014,2]
[403269151,1769283323732,-273.0,0.0001014,2]
[403269152,1769283326023,-175.38621614,0.0001014,2]
[403269155,1769283345521,-155.26686864,0.0001014,2]
[403269156,1769283347000,-423.79,0.0001014,2]
[403269157,1769283350533,-189.91285581,0.0001014,2]
[403269158,1769283354315,-177.2800995,0.0001014,2]
[403269160,1769283358305,-183.95516542,0.0001014,2]
[403269161,1769283362798,-382.16196347,0.0001014,2]
[403269162,1769283364333,-314.91192107,0.0001014,2]
[403269163,1769283365881,-300.0,0.0001014,2]
[403269164,1769283368068,-240.12905618,0.0001014,2]
[403269165,1769283370169,-162.06320131,0.0001014,2]
[403269166,1769283372070,-240.68893856,0.0001014,2]
[403269170,1769283373801,-272.39166125,0.0001014,2]
[403269171,1769283375307,-209.87094382,0.0001014,2]
[403269172,1769283376482,-180.10092261,0.0001014,2]
[403269175,1769283379352,-182.59685887,0.0001014,2]
[403269176,1769283381286,-244.04452484,0.0001014,2]
[403269177,1769283384626,-732.12055295,0.0001013,2]
[403269178,1769283386394,-300.0,0.0001013,2]
[403269179,1769283388011,-187.57386683,0.0001013,2]
[403269180,1769283389553,-357.84889641,0.0001013,2]
[403269181,1769283392008,-221.84434696,0.0001013,2]
[403269182,1769283394467,-159.47121487,0.0001013,2]
[403269183,1769283395573,-184.0,0.0001013,2]
[403269184,1769283397555,-821.94509455,0.0001013,2]
[403269185,1769283399971,-224.34570258,0.0001013,2]
[403269186,1769283400512,2500.0,0.0001004,2]
[403269188,1769283401873,-2564.93765723,0.0001013,2]
[403269189,1769283401920,-4570.13468554,0.0001014,2]
[403269190,1769283402113,-10000.01,0.0001014,2]
[403269191,1769283402247,-10000.01,0.0001014,2]
[403269192,1769283402403,-10000.01,0.0001014,2]
[403269193,1769283402502,-10000.01,0.0001014,2]
[403269194,1769283402563,-275.65429742,0.0001014,2]
[403269195,1769283408102,-10000.01,0.0001014,2]
[403269196,1769283408218,-10000.01,0.0001014,2]
[403269197,1769283408326,-10000.01,0.0001014,2]
[403269198,1769283408446,-3706.40262073,0.0001014,2]
[403269199,1769283408476,-500.0,0.00010239,2]
[403269200,1769283408504,-380.63415321,0.00010239,2]
[403269201,1769283408535,-325.93645212,0.00010239,2]
[403269202,1769283408942,-174.06354788,0.00010239,2]
[403269203,1769283408992,-452.0176905,0.00010239,2]
[403269204,1769283409020,-304.41790839,0.00010239,2]
[403269205,1769283409051,-928.22403267,0.00010239,2]
[403269206,1769283409087,-928.22403267,0.00010239,2]
[403269207,1769283409118,-928.22403267,0.00010239,2]
[403269208,1769283409151,-928.22403267,0.00010239,2]
[403269209,1769283409182,-133.12250819,0.00010239,2]
[403269210,1769283409671,-795.10152448,0.00010239,2]
[403269211,1769283412517,-295.06693158,0.00010239,2]
[403269212,1769283415739,-165.57403326,0.00010239,2]
[403269213,1769283417533,-248.34761799,0.00010239,2]
[403269214,1769283422181,-219.23544984,0.00010239,2]
[403269215,1769283422208,-6.29233339,0.00010239,2]
[403269218,1769283423651,-649.34143886,0.00010239,2]
[403269219,1769283425141,-182.4341895,0.00010239,2]
[403269220,1769283426928,-90.15607092,0.00010239,2]
[403269221,1769283426961,-138.26724156,0.00010239,2]
[403269222,1769283428605,-240.49128124,0.00010239,2]
[403269223,1769283431636,-190.48406699,0.00010233,2]
[403269224,1769283433237,-106.84658843,0.00010233,2]
[403269225,1769283433266,-167.15341157,0.00010239,2]
[403269226,1769283435417,-382.3120983,0.00010239,2]
[403269227,1769283435445,-30.41761278,0.00010239,2]
[403269229,1769283450513,-897.80641989,0.00010239,2]
[403269230,1769283450926,-160.40670227,0.00010239,2]
[403269231,1769283452739,-288.38501587,0.00010239,2]
[403269235,1769283457167,-479.43231453,0.00010239,2]
[403269236,1769283457193,-258.87738128,0.00010239,2]
[403269239,1769283459544,-639.41946431,0.00010239,2]
[403269245,1769283480992,-29.92718708,0.00010239,2]
[403269246,1769283481017,-230.74107138,0.00010239,2]
[403269247,1769283488199,500.0,0.0001004,2]
[403269250,1769283495440,-196.31686961,0.00010239,2]
[403269252,1769283498016,-226.62935403,0.00010239,2]
[403269256,1769283502801,-254.30682026,0.00010239,2]
[403269258,1769283504260,-20.22991739,0.00010239,2]
[403269259,1769283504284,-248.89606564,0.00010239,2]
[403269261,1769283508569,-220.77298238,0.00010239,2]
[403269262,1769283509983,-193.27711953,0.00010239,2]
[403269263,1769283511955,-192.72668879,0.00010239,2]
[403269264,1769283514061,-72.55117633,0.00010239,2]
[403269265,1769283514088,-341.21147275,0.00010239,2]
[403269266,1769283516009,9500.01,0.0001004,2]
[403269267,1769283516035,10000.01,0.0001004,2]
[403269268,1769283516062,116631.41809301,0.0001004,2]
[403269269,1769283516093,190076.17070699,0.0001004,2]
[403269270,1769283518809,-166.66,0.00010239,2]
[403269271,1769283521271,-170.30130963,0.00010239,2]
[403269273,1769283522479,-172.95805524,0.00010239,2]
[403269274,1769283523694,-77.09319505,0.00010239,2]
[403269275,1769283523718,-110.54702303,0.00010239,2]
[403269276,1769283527369,-226.46511723,0.00010239,2]
[403269277,1769283530429,-249.0,0.00010239,2]
[403269278,1769283532922,-157.51314436,0.00010239,2]
[403269279,1769283534312,-184.69874805,0.00010239,2]
[403269280,1769283534336,-19.14326923,0.00010239,2]
[403269281,1769283536905,-153.49718514,0.00010239,2]
[403269282,1769283538339,-244.80789902,0.00010239,2]
[403269286,1769283542747,-191.61455368,0.00010239,2]
[403269287,1769283545019,-191.15444854,0.00010239,2]
[403269288,1769283546935,-128.00667706,0.00010239,2]
[403269289,1769283546960,-91.5761455,0.00010239,2]
[403269290,1769283549826,-161.9472056,0.00010239,2]
[403269291,1769283551726,-430.49107141,0.00010239,2]
[403269292,1769283558556,-244.20961016,0.00010239,2]
[403269293,1769283558581,-161.65817532,0.00010239,2]
[403269294,1769283560156,-165.26725566,0.00010239,2]
[403269295,1769283563712,-394.2525394,0.00010239,2]
[403269296,1769283565734,-207.04606229,0.00010239,2]
[403269297,1769283565758,-59.84100449,0.00010239,2]
[403269298,1769283567794,-435.52271657,0.00010239,2]
[403269299,1769283572536,-283.16071513,0.00010239,2]
[403269300,1769283574694,-149.69959648,0.00010239,2]
[403269301,1769283574718,-122.74507828,0.00010239,2]
[403269302,1769283578870,-252.66825846,0.00010239,2]
[403269332,1769283698304,-10000.01,0.00010139,2]
[403269333,1769283698561,-10000.01,0.00010139,2]
[403269339,1769283704390,-10000.01,0.00010139,2]
[403269340,1769283704498,-3962.3727,0.00010139,2]
[403269341,1769283704530,-833.33830764,0.00010139,2]
[403269342,1769283704597,-408.58798472,0.00010139,2]
[403269355,1769283801838,-150.0,0.00010138,2]
[403269356,1769283801892,-9700.01,0.00010139,2]
[403269357,1769283802037,-10000.01,0.00010139,2]
[403269361,1769283816798,-10000.01,0.00010139,2]
[403269362,1769283816853,-10000.01,0.00010139,2]
[403269363,1769283820208,-10000.01,0.00010139,2]
[403269364,1769283820399,-10000.01,0.00010139,2]
[403269365,1769283823433,-2508.9335,0.00010139,2]
[403269366,1769283823463,-424.75032292,0.00010139,2]
[403269367,1769283823492,-500.0,0.00010139,2]
[403269368,1769283823519,-500.0,0.00010139,2]
[403269369,1769283823549,-833.33830764,0.00010139,2]
[403269370,1769283823860,-465.96573888,0.00010139,2]
[403269371,1769283829576,-367.37256876,0.00010139,2]
[403269372,1769283829606,-169.43492143,0.00010139,2]
[403269373,1769283829635,-298.60315287,0.00010139,2]
[403269374,1769283829667,-833.33830764,0.00010139,2]
[403269375,1769283829699,-833.33830764,0.00010139,2]
[403269376,1769283829729,-833.33830764,0.00010139,2]
[403269377,1769283829758,-833.33830764,0.00010139,2]
[403269378,1769283829789,-829.14394512,0.00010139,2]
[403269379,1769283830389,-4.19436252,0.00010139,2]
[403269380,1769283832201,-833.33830764,0.00010139,2]
[403269381,1769283832234,-833.33830764,0.00010139,2]
[403269382,1769283832269,-833.33830764,0.00010139,2]
[403269383,1769283832299,-833.33830764,0.00010139,2]
[403269384,1769283832328,-833.33830764,0.00010139,2]
[403269385,1769283832359,-833.28861596,0.00010139,2]
[403269386,1769283832512,-0.04969168,0.00010139,2]
[403269387,1769283832541,-833.33830764,0.00010139,2]
[403269388,1769283832570,-833.33830764,0.00010139,2]
[403269389,1769283832599,-833.33830764,0.00010139,2]
[403269390,1769283832629,-833.33830764,0.00010139,2]
[403269391,1769283832658,-833.33830764,0.00010139,2]
[403269392,1769283832692,-833.1892326,0.00010139,2]
[403269393,1769283832838,-0.14907504,0.00010139,2]
[403269394,1769283832869,-833.33830764,0.00010139,2]
[403269395,1769283832899,-833.33830764,0.00010139,2]
[403269396,1769283832930,-833.33830764,0.00010139,2]
[403269397,1769283832960,-833.33830764,0.00010139,2]
[403269398,1769283832992,-833.33830764,0.00010139,2]
[403269399,1769283833023,-832.99046588,0.00010139,2]
[403269400,1769283833486,-0.34784176,0.00010139,2]
[403269401,1769283833496,-0.19876672,0.00010139,2]
[403269407,1769283885466,-378.4483905,0.00010139,2]
[403269408,1769283889330,-178.71893,0.00010139,2]
[403269409,1769283892682,-178.75890676,0.00010139,2]
[403269410,1769283895758,-97.21331366,0.00010139,2]
[403269411,1769283895781,-95.52081796,0.00010139,2]
[403269412,1769283897576,-307.27331121,0.00010139,2]
[403269413,1769283898990,-309.2122,0.00010139,2]
[403269417,1769283945650,10000.01,0.00010039,2]
[403269418,1769283945677,10000.01,0.00010039,2]
[403269419,1769283945704,10000.01,0.00010039,2]
[403269420,1769283945731,33812.5834,0.00010039,2]
[403269456,1769284094219,30445.8541,0.00010039,2]
[403269492,1769284231606,-447.54591821,0.00010129,2]
[403269496,1769284232402,-500.0,0.00010129,2]
[403269497,1769284232416,-279.26125715,0.00010129,2]
[403269498,1769284232484,-2109.64631498,0.00010129,2]
[403269499,1769284232495,-384.07151188,0.00010129,2]
[403269500,1769284232505,-500.0,0.00010133,2]
[403269501,1769284232514,-252.66825846,0.00010133,2]
[403269502,1769284232524,-807.39336506,0.00010237,2]
[403269504,1769284232645,-392.60663494,0.00010237,2]
[403269505,1769284232654,-265.91060677,0.00010238,2]
[403269506,1769284232663,-500.0,0.00010238,2]
[403269507,1769284232672,-251.96517198,0.00010238,2]
[403269508,1769284232680,-500.0,0.00010238,2]
[403269509,1769284232689,-500.0,0.00010238,2]
[403269510,1769284232698,-544.70194449,0.00010238,2]
[403269511,1769284232707,-234.54373143,0.00010238,2]
[403269512,1769284232715,-885.87891668,0.00010238,2]
[403269513,1769284232724,-885.87891668,0.00010238,2]
[403269514,1769284232733,-885.87891668,0.00010238,2]
[403269515,1769284232742,-885.87891668,0.00010238,2]
[403269516,1769284232751,-885.87891668,0.00010238,2]
[403269517,1769284232760,-500.0,0.00010238,2]
[403269518,1769284232768,-885.87891668,0.00010238,2]
[403269519,1769284232778,-885.87891668,0.00010238,2]
[403269520,1769284232787,-182.37334095,0.00010238,2]
[403269521,1769284232796,-885.87891668,0.00010238,2]
[403269522,1769284232805,-500.0,0.00010238,2]
[403269523,1769284232814,-885.87891668,0.00010238,2]
[403269524,1769284232823,-885.87891668,0.00010238,2]
[403269525,1769284232832,-885.87891668,0.00010238,2]
[403269526,1769284232842,-500.0,0.00010238,2]
[403269527,1769284232851,-885.87891668,0.00010238,2]
[403269528,1769284232861,-885.87891668,0.00010238,2]
[403269529,1769284232870,-885.87891668,0.00010238,2]
[403269530,1769284232879,-885.87891668,0.00010238,2]
[403269531,1769284232888,-885.87891668,0.00010238,2]
[403269532,1769284232897,-885.87891668,0.00010238,2]
[403269533,1769284232906,-885.87891668,0.00010238,2]
[403269534,1769284232915,-885.87891668,0.00010238,2]
[403269535,1769284232923,-885.87891668,0.00010238,2]
[403269536,1769284232932,-885.87891668,0.00010238,2]
[403269537,1769284232941,-885.87891668,0.00010238,2]
[403269538,1769284232950,-885.87891668,0.00010238,2]
[403269539,1769284232960,-885.87891668,0.00010238,2]
[403269540,1769284232969,-885.87891668,0.00010238,2]
[403269541,1769284232979,-885.87891668,0.00010238,2]
[403269542,1769284232989,-885.87891668,0.00010238,2]
[403269543,1769284232998,-885.87891668,0.00010238,2]
[403269544,1769284233008,-885.87891668,0.00010238,2]
[403269545,1769284233017,-885.87891668,0.00010238,2]
[403269546,1769284233026,-885.87891668,0.00010238,2]
[403269547,1769284233036,-885.87891668,0.00010238,2]
[403269548,1769284233045,-885.87891668,0.00010238,2]
[403269549,1769284233055,-885.87891668,0.00010238,2]
[403269550,1769284233064,-885.87891668,0.00010238,2]
[403269551,1769284233073,-885.87891668,0.00010238,2]
[403269552,1769284233083,-885.87891668,0.00010238,2]
[403269553,1769284233092,-885.87891668,0.00010238,2]
[403269554,1769284233102,-885.87891668,0.00010238,2]
[403269555,1769284233111,-885.87891668,0.00010238,2]
[403269556,1769284233120,-885.87891668,0.00010238,2]
[403269557,1769284233129,-885.87891668,0.00010238,2]
[403269558,1769284233139,-885.87891668,0.00010238,2]
[403269559,1769284233148,-880.24011873,0.00010238,2]
[403269560,1769284233161,-5.63879795,0.00010238,2]
[403269562,1769284233170,-567.20802353,0.00010238,2]
[403269567,1769284236903,-266.55444611,0.00010238,2]
[403269573,1769284238454,-52.11644704,0.00010238,2]
[403269575,1769284238463,-795.86110638,0.00010238,2]
[403269627,1769284238919,-90.0178103,0.00010238,2]
[403269629,1769284238929,-409.9821897,0.00010238,2]
[403269631,1769284238940,-304.0,0.00010238,2]
[403269640,1769284239015,-171.89672698,0.00010238,2]
[403269642,1769284239024,-885.87891668,0.00010238,2]
[403269643,1769284239035,-885.87891668,0.00010238,2]
[403269646,1769284239044,-885.87891668,0.00010238,2]
[403269648,1769284239054,-885.87891668,0.00010238,2]
[403269650,1769284239064,-912.4006003,0.00010238,2]
[403269652,1769284239074,-912.4006003,0.00010238,2]
[403269653,1769284239083,-912.4006003,0.00010238,2]
[403269655,1769284239093,-912.4006003,0.00010238,2]
[403269657,1769284239102,-912.4006003,0.00010238,2]
[403269659,1769284239112,-912.4006003,0.00010238,2]
[403269662,1769284239122,-912.4006003,0.00010238,2]
[403269663,1769284239131,-912.4006003,0.00010238,2]
[403269665,1769284239140,-912.4006003,0.00010238,2]
[403269667,1769284239150,-912.4006003,0.00010238,2]
[403269669,1769284239160,-912.4006003,0.00010238,2]
[403269671,1769284239169,-912.4006003,0.00010238,2]
[403269673,1769284239179,-912.4006003,0.00010238,2]
[403269676,1769284239188,-224.6283846,0.00010238,2]
[403269678,1769284239201,-687.7722157,0.00010238,2]
[403269680,1769284239211,-912.4006003,0.00010238,2]
[403269682,1769284239221,-912.4006003,0.00010238,2]
[403269684,1769284239230,-912.4006003,0.00010238,2]
[403269686,1769284239239,-912.4006003,0.00010238,2]
[403269688,1769284239248,-912.4006003,0.00010238,2]
[403269690,1769284239257,-912.4006003,0.00010238,2]
[403269692,1769284239266,-912.4006003,0.00010238,2]
[403269694,1769284239275,-912.4006003,0.00010238,2]
[403269696,1769284239283,-912.4006003,0.00010238,2]
[403269698,1769284239293,-912.4006003,0.00010238,2]
[403269700,1769284239302,-912.4006003,0.00010238,2]
[403269702,1769284239312,-912.4006003,0.00010238,2]
[403269704,1769284239321,-912.4006003,0.00010238,2]
[403269706,1769284239331,-354.87899823,0.00010239,2]
[403269708,1769284239340,-1278.77990514,0.00010239,2]
[403269710,1769284239350,-250.0,0.00011142,2]
[403269712,1769284239359,-578.20924308,0.00013029,2]
[403269714,1769284239368,-250.0,0.00013029,2]
[403269716,1769284239378,-500.0,0.00013029,2]
[403269717,1769284239387,-500.0,0.00013029,2]
[403269719,1769284239396,-500.0,0.00013029,2]
[403269722,1769284239406,-9552.16786547,0.00013029,2]
[403269723,1769284239415,-500.0,0.00013029,2]
[403269725,1769284239425,-500.0,0.00013029,2]
[403269727,1769284239435,-500.0,0.00013029,2]
[403269729,1769284239444,-500.0,0.00013029,2]
[403269731,1769284239454,-253.04696416,0.00013029,2]
[403269734,1769284239468,-246.95303584,0.00013029,2]
[403269736,1769284239477,-459.60288348,0.00013029,2]
[403269824,1769284240502,-40.39711652,0.00013029,2]
[403269826,1769284240511,-459.60288348,0.00013029,2]
[403269829,1769284240526,-40.39711652,0.00013029,2]
[403269831,1769284240535,-174.61919142,0.00013029,2]
[403269833,1769284240544,-500.0,0.00013029,2]
[403269834,1769284240553,-254.01369206,0.00013029,2]
[403269841,1769284240607,-489.49400943,0.00013029,2]
[403269843,1769284240616,-209.40437684,0.00013029,2]
[403269845,1769284240626,-151.0,0.00013029,2]
[403269847,1769284240635,-151.0,0.00013029,2]
[403269849,1769284240644,-151.0,0.00013029,2]
[403269852,1769284240653,-151.0,0.00013029,2]
[403269853,1769284240663,-151.0,0.00013029,2]
[403269855,1769284240671,-151.0,0.00013029,2]
[403269857,1769284240680,-151.0,0.00013029,2]
[403269859,1769284240690,-151.0,0.00013029,2]
[403269861,1769284240699,-151.0,0.00013029,2]
[403269863,1769284240708,-151.0,0.00013029,2]
[403269866,1769284240718,-151.0,0.00013029,2]
[403269867,1769284240728,-151.0,0.00013029,2]
[403269869,1769284240736,-151.0,0.00013699,2]
[403269871,1769284240746,-151.0,0.00013699,2]
[403269873,1769284240755,-151.0,0.00013699,2]
[403269875,1769284240764,-151.0,0.00013699,2]
[403269877,1769284240773,-151.0,0.00013699,2]
[403269879,1769284240782,-151.0,0.00013699,2]
[403269881,1769284240791,-151.0,0.00013699,2]
[403269883,1769284240800,-151.0,0.00013699,2]
[403269885,1769284240809,-151.0,0.00013699,2]
[403269887,1769284240818,-151.0,0.00013699,2]
[403269889,1769284240827,-151.0,0.00013699,2]
[403269891,1769284240835,-151.0,0.00013699,2]
[403269893,1769284240844,-151.0,0.00013699,2]
[403269895,1769284240853,-289.13841169,0.00013699,2]
[403269897,1769284240862,-14783.98,0.00013813,2]
[403269899,1769284240871,-229.0,0.00014915,2]
[403269901,1769284240880,-159.598434,0.00016102,2]
[403269903,1769284240889,-412.31594314,0.00016356,2]
[403269905,1769284240898,-334.2745617,0.00016356,2]
[403269907,1769284240907,-5888.95973662,0.00016356,5]
[403269909,1769284240916,-500.0,0.00016438,2]
[403269911,1769284240926,-438.25822489,0.00016438,2]
[403269913,1769284240936,-500.0,0.00016438,2]
[403269915,1769284240945,-500.0,0.00016477,2]
[403269917,1769284240954,-2923.02,0.00016661,2]
[403269919,1769284240963,-379.99,0.00016755,2]
[403269921,1769284240972,-206.58,0.0001678,2]
[403269923,1769284240981,-200.0,0.00016814,2]
[403269925,1769284240990,-500.0,0.0001686,2]
[403269927,1769284241000,-1000.0,0.00016882,2]
[403269929,1769284241009,-2078.56,0.00016986,2]
[403269931,1769284241018,-250.0,0.00017,2]
[403269933,1769284241027,-166.67,0.00017071,2]
[403269935,1769284241036,-1000.0,0.0001726,2]
[403269937,1769284241045,-500.0,0.00017274,2]
[403269939,1769284241054,-200.0,0.00017313,2]
[403269941,1769284241063,-1000.0,0.00017408,2]
[403269943,1769284241071,-2461.38,0.00017425,2]
[403269945,1769284241080,-300.0,0.00017425,2]
[403269947,1769284241090,-150.0,0.00017479,2]
[403269949,1769284241099,-1000.0,0.00017516,2]
[403269951,1769284241108,-1000.0,0.00017534,2]
[403269953,1769284241117,-3879.143,0.00017639,2]
[403269955,1769284241128,-279.909,0.00017639,2]
[403269957,1769284241137,-675.51304836,0.0001764,2]
[403269959,1769284241146,-200.0,0.00017663,2]
[403269961,1769284241154,-262.37919886,0.00017699,2]
[403269963,1769284241163,-150.0,0.00017699,2]
[403269965,1769284241172,-150.0,0.00017699,2]
[403269967,1769284241182,-150.0,0.00017699,2]
[403269969,1769284241191,-164.13003579,0.00017699,2]
[403269970,1769284241201,-159.00537692,0.00017699,2]
[403269972,1769284241210,-500.0,0.00017753,2]
[403269974,1769284241219,-150.0,0.00017754,2]
[403269977,1769284241228,-2583.0,0.00017792,2]
[403269979,1769284241237,-1000.0,0.00017808,2]
[403269980,1769284241246,-200.0,0.00017809,2]
[403269982,1769284241255,-2176.0,0.00017838,2]
[403269984,1769284241264,-200.0,0.00017856,2]
[403269986,1769284241273,-3770.7386,0.000179,2]
[403269988,1769284241282,-1493.70115344,0.000179,2]
[403269990,1769284241291,-214.79667541,0.000179,2]
[403269992,1769284241300,-178.77712539,0.000179,2]
[403269994,1769284241309,-2500.0,0.000179,2]
[403269996,1769284241319,-500.0,0.000179,2]
[403269998,1769284241328,-500.0,0.000179,2]
[403270000,1769284241337,-500.0,0.000179,2]
[403270002,1769284241346,-500.0,0.000179,2]
[403270004,1769284241355,-500.0,0.000179,2]
[403270006,1769284241364,-500.0,0.000179,2]
[403270008,1769284241373,-500.0,0.000179,2]
[403270010,1769284241382,-500.0,0.000179,2]
[403270012,1769284241392,-500.0,0.000179,2]
[403270014,1769284241401,-500.0,0.000179,2]
[403270016,1769284241410,-500.0,0.000179,2]
[403270018,1769284241419,-500.0,0.000179,2]
[403270020,1769284241428,-500.0,0.000179,2]
[403270022,1769284241437,-500.0,0.000179,2]
[403270024,1769284241446,-500.0,0.000179,2]
[403270026,1769284241456,-500.0,0.000179,2]
[403270028,1769284241467,-500.0,0.000179,2]
[403270030,1769284241476,-500.0,0.000179,2]
[403270032,1769284241485,-500.0,0.000179,2]
[403270034,1769284241494,-500.0,0.000179,2]
[403270036,1769284241503,-500.0,0.000179,2]
[403270037,1769284241512,-331.70620449,0.000179,2]
[403270039,1769284241521,-914.01137783,0.00017956,2]
[403270041,1769284241530,-150.0,0.00017973,2]
[403270043,1769284241539,-150.0,0.00017973,2]
[403270045,1769284241548,-2024.19,0.0001799,2]
[403270047,1769284241557,-2024.19,0.0001799,2]
[403270049,1769284241566,-500.0,0.00017997,2]
[403270051,1769284241575,-500.0,0.00017997,2]
[403270053,1769284241583,-500.0,0.00017997,2]
[403270055,1769284241593,-500.0,0.00017997,2]
[403270057,1769284241602,-500.0,0.00017997,2]
[403270059,1769284241612,-500.0,0.00017997,2]
[403270061,1769284241621,-151.0,0.00017997,2]
[403270063,1769284241630,-1071.11189023,0.00017999,5]
[403270065,1769284241639,-300.0,0.00017999,2]
[403270067,1769284241648,-300.0,0.00017999,2]
[403270069,1769284241657,-609.90965872,0.00017999,2]
[403270071,1769284241667,-300.0,0.00017999,2]
[403270073,1769284241676,-413.71370939,0.00017999,2]
[403270075,1769284241685,-300.0,0.00017999,2]
[403270077,1769284241694,-300.0,0.00017999,2]
[403270079,1769284241703,-160.475,0.00017999,2]
[403270081,1769284241712,-500.0,0.00017999,2]
[403270083,1769284241721,-500.0,0.00017999,2]
[403270085,1769284241731,-500.0,0.00017999,2]
[403270087,1769284241741,-500.0,0.00017999,2]
[403270089,1769284241750,-500.0,0.00017999,2]
[403270091,1769284241759,-500.0,0.00017999,2]
[403270093,1769284241768,-500.0,0.00017999,2]
[403270095,1769284241777,-500.0,0.00017999,2]
[403270097,1769284241786,-500.0,0.00017999,2]
[403270099,1769284241795,-500.0,0.00017999,2]
[403270101,1769284241804,-500.0,0.00017999,2]
[403270103,1769284241814,-500.0,0.00017999,2]
[403270105,1769284241823,-576.20605499,0.00017999,2]
[403270107,1769284241832,-300.0,0.00017999,2]
[403270109,1769284241841,-300.0,0.00017999,2]
[403270111,1769284241851,-500.0,0.00017999,2]
[403270113,1769284241860,-500.0,0.00017999,2]
[403270114,1769284241870,-500.0,0.00017999,2]
[403270116,1769284241879,-500.0,0.00017999,2]
[403270118,1769284241889,-500.0,0.00017999,2]
[403270120,1769284241898,-500.0,0.00017999,2]
[403270122,1769284241907,-500.0,0.00017999,2]
[403270124,1769284241916,-500.0,0.00017999,2]
[403270126,1769284241925,-500.0,0.00017999,2]
[403270128,1769284241935,-500.0,0.00017999,2]